bitfinex/quotes_ETHUSD_20240821
["timestamp","ask_amount","ask_price","bid_price","bid_amount"]
[1724264866329,2.2889,2641.9,2641.4,3.78574]
[1724264866815,2.2889,2641.9,2640.9,3.78653]
[1724264866997,2.2889,2641.9,2641.6,3.78545]
[1724264868026,2.2889,2641.9,2641.7,3.78532]
[1724264868368,2.2889,2641.9,2641.2,3.78605]
[1724264868369,2.439,2642.3,2641.6,3.78551]
[1724264868591,2.439,2642.3,2642.1,3.78473]
[1724264869244,2.439,2642.3,2641.9,3.78504]
[1724264869406,2.439,2642.3,2641.7,3.78532]
[1724264869612,2.6829,2642.3,2641.9,3.78508]
[1724264869808,2.6829,2642.3,2642.1,3.78478]
[1724264869809,2.439,2642.3,2642.1,3.78478]
[1724264870641,2.439,2642.3,2641.9,3.78506]
[1724264871219,2.439,2642.3,2641.7,3.78543]
[1724264871220,2.439,2642.3,2641.7,3.78536]
[1724264872063,2.439,2642.3,2641.5,3.78563]
[1724264872267,0.622351,2642.2,2641.5,3.78563]
[1724264872416,0.622351,2642.2,2641.7,3.78536]
[1724264872640,0.622351,2642.2,2641.7,7.57072]
[1724264873266,0.622351,2642.2,2641.7,3.78536]
[1724264873700,0.622351,2642.2,2641.4,3.78586]
[1724264873963,2.7750351,2642.1,2641.6,3.78551]
[1724264875082,2.7750351,2642.1,2641.6,3.78548]
[1724264875434,2.7750351,2642.1,2641.2,3.78605]
[1724264875768,2.4294,2641.8,2641.1,3.78618]
[1724264876060,2.4294,2641.8,2641.3,3.78591]
[1724264876262,2.4294,2641.8,2641.3,7.57183]
[1724264876417,2.4294,2641.8,2641.4,3.78582]
[1724264878246,3.78579,2641.5,2640.8,3.78672]
[1724264878453,3.78579,2641.5,2640.7,3.78674]
[1724264878708,2.4294,2641.6,2640.9,3.78648]
[1724264878863,6.21508,2641.6,2640.9,3.78647]
[1724264879061,1.74394597,2641.5,2640.9,3.78647]
[1724264879407,2.4294,2641.4,2640.8,3.78672]
[1724264879547,2.4294,2641.4,2640.6,3.78701]
[1724264879755,2.4294,2641.2,2640.7,3.78678]
[1724264880066,2.4294,2641.2,2640.2,4.16774]
[1724264880067,2.4294,2641.2,2640.9,3.78656]
[1724264880601,2.4294,2641.2,2641.0,3.78634]
[1724264880755,2.4411,2641.6,2641.3,3.78597]
[1724264880958,2.4411,2641.6,2641.5,3.78572]
[1724264881882,2.4411,2641.6,2641.1,3.78619]
[1724264882082,2.68521,2641.6,2641.2,3.78608]
[1724264882485,2.4411,2641.6,2641.2,3.78608]
[1724264882667,2.4411,2641.6,2641.3,3.786]
[1724264883524,2.4411,2641.6,2640.9,3.78646]
[1724264883660,2.4411,2641.6,2641.0,3.78642]
[1724264884586,2.4411,2641.6,2640.7,3.78684]
[1724264884792,2.4411,2641.6,2641.5,3.78572]
[1724264885089,2.4411,2641.6,2640.8,3.9302]
[1724264885090,2.4411,2641.6,2640.8,4.33668]
[1724264885256,2.4411,2641.6,2641.2,3.78608]
[1724264885606,2.4411,2641.6,2641.4,3.78578]
[1724264885809,2.4411,2641.6,2641.5,3.78572]
[1724264886021,2.4822,2642.1,2641.0,0.9656]
[1724264886229,2.4822,2642.1,2642.0,7.57002]
[1724264886394,7.43883967,2642.8,2641.3,4.25615314]
[1724264886395,2.4822,2642.4,2642.2,3.78463]
[1724264886629,2.4822,2642.4,2642.3,3.78458]
[1724264886989,2.4822,2642.4,2642.3,7.56916]
[1724264887626,2.4822,2643.1,2642.8,3.78384]
[1724264887941,2.4822,2643.1,2641.9,0.3793]
[1724264887942,0.24822,2643.0,2642.7,3.784]
[1724264888271,0.24822,2643.0,2641.8,3.0]
[1724264888272,2.477,2642.8,2641.8,3.0]
[1724264888392,2.477,2642.8,2642.2,3.78464]
[1724264888591,2.477,2642.8,2641.9,0.55]
[1724264888592,2.477,2642.8,2642.1,3.78476]
[1724264889035,2.477,2642.8,2642.3,3.78457]
[1724264889615,2.477,2642.8,2642.1,3.78476]
[1724264889616,3.78386,2642.8,2642.1,3.78476]
[1724264889798,2.6885,2642.7,2642.2,3.78464]
[1724264890000,2.4408,2642.7,2642.2,3.78464]
[1724264890207,2.4408,2642.7,2641.6,3.78557]
[1724264890549,2.4408,2642.7,2642.5,3.78425]
[1724264890709,2.4408,2642.7,2642.2,3.78466]
[1724264890916,2.4408,2642.7,2642.3,3.78455]
[1724264891112,2.4408,2642.7,2642.4,3.78443]
[1724264892339,2.4408,2642.7,2642.3,7.56894]
[1724264892547,2.4408,2642.7,2642.4,3.78439]
[1724264893055,2.4408,2642.7,2642.5,3.78418]
[1724264893206,2.4408,2642.7,2642.6,3.78415]
[1724264893540,2.4408,2642.7,2642.5,3.78418]
[1724264894103,2.4408,2642.7,2642.2,3.78471]
[1724264894444,2.4408,2642.7,2642.1,3.78482]
[1724264894445,0.24408,2642.6,2642.1,3.78482]
[1724264894646,0.24408,2642.6,2642.2,3.78469]
[1724264895148,0.24408,2642.6,2642.2,3.78462]
[1724264895444,0.24408,2642.6,2641.7,7.16469]
[1724264895646,2.4408,2642.7,2642.2,3.78464]
[1724264896032,2.4408,2642.7,2642.3,3.78457]
[1724264896747,2.4408,2642.7,2642.2,3.78464]
[1724264897047,2.4408,2642.7,2641.7,3.3793]
[1724264897230,2.3062,2642.5,2641.9,3.78507]
[1724264897435,3.65912697,2642.5,2641.9,3.78507]
[1724264897598,2.2583,2642.4,2641.6,3.78545]
[1724264897950,2.2583,2642.4,2641.5,3.78558]
[1724264897951,2.2583,2642.3,2641.5,3.78558]
[1724264898132,2.862586,2642.2,2641.5,3.78558]
[1724264898336,8.173816,2642.2,2641.5,3.78558]
[1724264898498,8.173816,2642.2,2641.3,3.78594]
[1724264898499,2.3107,2641.9,2641.3,3.78593]
[1724264899078,2.3107,2641.9,2641.1,3.78621]
[1724264899079,3.78531,2641.8,2641.1,7.56144172]
[1724264899349,2.3107,2641.7,2641.1,7.56144172]
[1724264899524,2.3107,2641.7,2641.1,3.77523172]
[1724264900358,6.09617,2641.7,2641.1,3.77523172]
[1724264900650,2.4666,2641.4,2640.7,3.78674]
[1724264900950,2.4666,2641.3,2640.7,3.78674]
[1724264901102,2.4666,2641.3,2640.6,3.78691]
[1724264901552,2.4666,2641.7,2640.7,0.3793]
[1724264901708,2.4666,2641.7,2641.3,3.78589]
[1724264901910,2.7742172,2641.7,2641.3,3.78589]
[1724264902251,2.7742172,2641.7,2641.3,7.57181]
[1724264902608,2.7742172,2641.7,2641.3,3.78589]
[1724264904507,2.7742172,2641.7,2641.1,3.78617]
[1724264904855,2.7742172,2641.7,2641.1,7.57237]
[1724264905072,2.4666,2641.7,2641.4,3.78575]
[1724264905275,2.4666,2641.7,2641.4,3.78582]
[1724264905783,2.4666,2641.7,2641.2,3.78608]
[1724264906577,2.3503,2641.5,2640.8,3.78664]
[1724264906730,2.3503,2641.5,2641.2,3.78613]
[1724264906932,2.3503,2641.5,2641.2,3.78605]
[1724264907437,2.3503,2641.5,2640.7,4.16609]
[1724264907438,2.3503,2641.5,2641.4,7.57174]
[1724264908044,2.3503,2641.5,2641.4,3.78587]
[1724264908443,2.2665,2642.0,2641.6,3.78555]
[1724264908713,2.2665,2642.0,2641.1,3.78627]
[1724264908864,2.2665,2642.0,2641.2,3.62570001]
[1724264909032,2.2665,2642.0,2641.9,3.78515]
[1724264909375,2.2665,2642.4,2641.9,3.78515]
[1724264909575,2.2665,2642.4,2642.1,3.78477]
[1724264909930,2.2665,2642.4,2642.1,7.56954]
[1724264910278,2.2665,2642.4,2641.9,3.78505]
[1724264910279,2.49315,2642.4,2641.9,3.78505]
[1724264910624,2.49315,2642.4,2642.0,3.78501]
[1724264910825,2.49315,2642.4,2641.6,3.78556]
[1724264911184,2.49315,2642.4,2641.8,3.78526]
[1724264911360,2.49315,2642.4,2641.9,3.78505]
[1724264911960,0.249315,2642.3,2641.9,3.78505]
[1724264912578,0.249315,2642.3,2642.0,3.78498]
[1724264912877,0.249315,2642.3,2641.9,3.78505]
[1724264913048,0.249315,2642.3,2641.9,7.57012]
[1724264913230,0.249315,2642.3,2641.9,3.78505]
[1724264913787,0.249315,2642.3,2642.0,3.785]
[1724264913944,2.2665,2642.4,2642.2,3.78463]
[1724264915055,2.2665,2642.4,2641.5,0.3793]
[1724264915346,2.2665,2642.4,2642.3,7.56916]
[1724264915663,19.69883967,2643.1,2642.5,3.78419]
[1724264915664,2.4803,2642.9,2642.5,3.78419]
[1724264915875,3.93787184,2642.9,2642.5,3.78425]
[1724264916276,3.93787184,2642.9,2642.6,3.78413]
[1724264916802,3.93787184,2642.9,2642.5,3.78428]
[1724264917874,3.93787184,2642.9,2642.3,4.33456]
[1724264918277,6.19368,2642.8,2641.9,0.3793]
[1724264918482,6.19373,2642.7,2641.9,0.3793]
[1724264918672,6.19373,2642.7,2642.0,3.78488]
[1724264918987,6.19373,2642.7,2642.1,3.78478]
[1724264919761,2.4097,2642.7,2642.3,3.78456]
[1724264920073,2.8358059,2642.7,2642.3,3.78456]
[1724264920489,2.8358059,2642.7,2642.5,3.78429]
[1724264920781,2.8358059,2642.7,2642.3,3.78456]
[1724264921117,2.8358059,2642.7,2642.1,3.78476]
[1724264921296,2.8358059,2642.7,2641.7,3.0]
[1724264921297,6.06396,2642.6,2642.0,3.78498]
[1724264921465,2.56338059,2642.6,2642.0,3.78494]
[1724264921679,2.56338059,2642.6,2642.0,7.56987]
[1724264921878,2.56338059,2642.6,2641.5,3.7857]
[1724264922078,2.3213,2642.5,2641.9,7.57019]
[1724264922368,0.63891406,2642.4,2642.1,3.78484]
[1724264922567,2.3213,2642.5,2642.1,3.78484]
[1724264923092,2.3213,2642.5,2642.1,3.78478]
[1724264923416,2.3213,2642.5,2642.2,3.78472]
[1724264923907,2.3213,2642.5,2642.1,7.56955]
[1724264924110,2.3213,2642.5,2642.1,3.78477]
[1724264924314,0.26048806,2642.4,2642.1,3.78477]
[1724264925161,0.26048806,2642.4,2641.9,3.78504]
[1724264925360,0.26048806,2642.4,2641.9,7.57011]
[1724264925605,0.26048806,2642.4,2641.9,3.78504]
[1724264925978,0.26048806,2642.4,2642.1,3.7848]
[1724264926194,2.3213,2642.5,2642.1,3.7848]
[1724264926361,2.26203888,2642.6,2642.5,7.56858]
[1724264926362,1.97845829,2642.6,2642.5,7.56858]
[1724264926556,2.4489,2642.9,2642.5,7.56858]
[1724264926758,2.4489,2642.9,2642.6,3.78406]
[1724264926962,2.69379,2642.9,2642.6,3.78406]
[1724264927211,2.69256837,2642.9,2642.6,3.78406]
[1724264927711,2.69256837,2642.9,2642.6,7.56813]
[1724264927906,2.69256837,2642.9,2642.6,3.78406]
[1724264928514,2.69256837,2642.9,2642.8,3.78386]
[1724264928515,2.44767837,2642.9,2642.8,3.78386]
[1724264929208,2.44767837,2642.9,2642.7,3.78394]
[1724264929716,2.44767837,2642.9,2642.4,3.7844]
[1724264930317,2.44767837,2642.9,2642.5,3.78422]
[1724264930809,2.44767837,2642.9,2642.4,3.78436]
[1724264931016,0.24476784,2642.8,2642.4,3.78436]
[1724264931488,0.24476784,2642.8,2642.4,7.56872]
[1724264931651,0.24476784,2642.8,2642.5,3.78429]
[1724264931863,2.44767837,2642.9,2642.6,3.78402]
[1724264933240,2.44767837,2642.9,2642.4,3.78432]
[1724264933241,2.44767837,2642.9,2642.5,3.7842]
[1724264933440,2.44767837,2642.9,2642.5,3.78427]
[1724264934337,2.44767837,2642.9,2642.3,3.78457]
[1724264934540,2.44767837,2642.9,2642.7,7.56786]
[1724264934766,2.44767837,2642.9,2642.7,3.78393]
[1724264934972,2.44767837,2642.9,2642.4,0.55]
[1724264935192,2.3088,2643.3,2643.0,3.78347]
[1724264935501,2.3088,2643.3,2643.0,7.56697]
[1724264935635,2.3088,2643.3,2642.8,7.5675]
[1724264935833,2.3088,2643.3,2642.4,0.9293]
[1724264935834,3.58356397,2643.3,2642.4,0.9293]
[1724264936052,7.36671397,2643.3,2642.6,3.78404]
[1724264936305,2.3067,2643.2,2642.7,3.78397]
[1724264936587,2.3067,2643.2,2642.8,3.78383]
[1724264937944,2.3067,2643.2,2643.0,3.7835]
[1724264938879,2.3067,2643.2,2642.9,7.56728]
[1724264939059,2.3067,2643.2,2643.0,3.78357]
[1724264939622,2.3067,2643.2,2643.1,3.78343]
[1724264945808,2.3067,2643.2,2643.1,7.56686]
[1724264946017,2.4195,2643.6,2643.3,3.78308]
[1724264946639,5.75877023,2643.9,2642.6,0.59199085]
[1724264946640,4.45318023,2644.0,2642.7,3.784]
[1724264946844,2.4767,2644.0,2643.8,3.78235]
[1724264947040,2.4767,2644.0,2643.0,4.16275]
[1724264947041,2.4767,2644.0,2643.6,3.78263]
[1724264947624,2.4767,2644.0,2643.4,3.78286]
[1724264948032,3.102565,2644.0,2643.4,3.78286]
[1724264948242,2.4767,2644.0,2643.0,0.3793]
[1724264948518,2.4767,2644.0,2643.6,3.7826]
[1724264948716,2.4767,2644.0,2643.2,3.78326]
[1724264948941,2.4767,2644.0,2643.6,3.78258]
[1724264950207,2.4767,2644.0,2643.5,3.78283]
[1724264950712,2.4767,2644.0,2643.0,4.16284]
[1724264950713,3.7825,2643.8,2643.1,3.78334]
[1724264950917,3.7825,2643.8,2643.0,3.7835]
[1724264950918,3.78273,2643.6,2643.0,3.7835]
[1724264951344,6.11268,2643.7,2643.1,3.78343]
[1724264951730,3.78274,2643.6,2642.9,7.56716]
[1724264951927,2.465,2643.5,2642.9,7.56716]
[1724264952263,2.465,2643.5,2642.9,3.78358]
[1724264952264,6.24794,2643.5,2642.9,3.78358]
[1724264952558,7.4243482,2643.5,2642.9,3.78358]
[1724264953057,3.6414082,2643.5,2642.9,3.78358]
[1724264953357,7.4242682,2643.5,2642.9,3.78358]
[1724264954846,11.2072382,2643.5,2642.9,3.78358]
[1724264955041,11.2072382,2643.5,2642.7,3.78393]
[1724264955042,6.10497,2643.3,2642.7,3.78393]
[1724264955380,2.3218,2643.2,2642.7,3.78387]
[1724264955544,2.3218,2643.2,2642.9,3.78363]
[1724264955874,2.3218,2643.2,2643.1,3.78343]
[1724264956081,2.3218,2643.2,2642.6,3.78412]
[1724264956082,2.3218,2643.2,2642.8,3.78374]
[1724264956459,2.3218,2643.2,2642.9,3.78361]
[1724264957293,2.3218,2643.2,2643.0,3.78357]
[1724264957592,2.3218,2643.2,2642.9,3.7837]
[1724264957746,2.3218,2643.2,2642.8,3.78385]
[1724264958093,2.3218,2643.2,2642.8,3.78379]
[1724264958392,2.3218,2643.2,2642.7,3.784]
[1724264958604,2.3218,2643.2,2642.6,3.78403]
[1724264958605,2.3218,2643.2,2643.1,3.78343]
[1724264958765,15.26,2644.0,2643.4,3.783]
[1724264958766,2.3255,2643.5,2643.4,3.783]
[1724264958946,2.3255,2643.5,2643.4,7.566]
[1724264959303,2.3255,2643.5,2643.4,3.783]
[1724264959869,2.3255,2643.5,2643.1,3.78333]
[1724264960243,2.3255,2643.5,2643.2,3.7832]
[1724264960445,2.3255,2643.5,2643.2,3.78321]
[1724264960645,2.3255,2643.5,2643.1,3.78333]
[1724264960646,2.3255,2643.5,2643.3,3.7831]
[1724264960872,2.3255,2643.5,2643.2,3.7832]
[1724264961075,2.55805,2643.5,2642.8,4.37579018]
[1724264961295,2.55805,2643.5,2642.4,3.78436]
[1724264961296,2.256,2643.1,2642.4,3.78436]
[1724264961549,2.256,2643.1,2641.6,1.66908289]
[1724264961714,2.256,2643.1,2642.6,3.78405]
[1724264961900,0.2256,2643.0,2642.6,3.78405]
[1724264963560,0.2256,2643.0,2642.5,3.78429]
[1724264963735,0.2256,2643.0,2642.6,3.78412]
[1724264963917,0.2256,2643.0,2642.6,7.56818]
[1724264964160,0.2256,2643.0,2642.7,3.78399]
[1724264964862,0.2256,2643.0,2642.7,3.784]
[1724264965220,0.2256,2643.0,2642.6,3.78404]
[1724264965563,0.2256,2643.0,2642.4,3.78437]
[1724264965564,2.3162,2642.9,2642.5,3.78422]
[1724264965769,2.3162,2642.9,2642.4,3.78433]
[1724264966069,2.3162,2642.9,2642.5,3.7842]
[1724264966368,2.3162,2642.9,2642.4,7.56868]
[1724264966563,2.3162,2642.9,2642.5,3.78428]
[1724264966884,2.57038,2642.9,2642.4,3.78433]
[1724264967038,2.57038,2642.9,2642.4,7.56867]
[1724264967235,2.57038,2642.9,2641.8,3.78529]
[1724264967436,2.2859,2642.6,2642.0,3.78497]
[1724264967652,2.51449,2642.6,2642.1,3.78473]
[1724264967961,2.2859,2642.6,2642.1,3.78473]
[1724264968171,2.2859,2642.6,2642.0,7.5699]
[1724264968334,2.2859,2642.6,2642.1,3.78474]
[1724264968665,2.2859,2642.6,2642.2,3.78471]
[1724264968883,2.2859,2642.6,2642.4,3.78443]
[1724264969050,2.2859,2642.6,2642.5,3.78429]
[1724264969367,2.2859,2642.6,2642.4,7.56874]
[1724264969568,2.2859,2642.6,2642.4,3.78431]
[1724264970168,2.2859,2642.6,2642.2,3.7847]
[1724264970664,2.2859,2642.6,2642.0,3.78493]
[1724264970966,3.09094421,2642.6,2642.1,3.78485]
[1724264971174,3.09094421,2642.6,2642.2,3.78462]
[1724264971327,3.09094421,2642.6,2642.3,3.78445]
[1724264971328,2.2859,2642.6,2642.3,3.78445]
[1724264971525,2.2859,2642.6,2642.3,7.56894]
[1724264971761,2.2859,2642.6,2642.3,3.78445]
[1724264973553,2.2859,2642.6,2642.1,3.78473]
[1724264973977,2.2859,2642.6,2641.5,0.3793]
[1724264974155,6.19239,2642.3,2641.7,3.78536]
[1724264974356,2.4078,2642.2,2641.8,0.02328017]
[1724264974560,7.43883967,2642.6,2642.1,7.56972]
[1724264974561,9.41928176,2642.6,2642.1,7.56972]
[1724264974839,2.4078,2642.5,2642.4,3.7844]
[1724264975604,2.4078,2642.5,2642.4,7.56883]
[1724264976097,2.3855,2642.9,2642.6,3.78414]
[1724264976620,2.3855,2642.9,2642.7,3.784]
[1724264977661,2.3855,2642.9,2642.7,7.56789]
[1724264977859,2.3855,2642.9,2642.8,3.78386]
[1724264978172,2.3855,2642.9,2642.7,3.78389]
[1724264978367,2.4384,2643.2,2643.0,3.78347]
[1724264979354,2.4384,2643.2,2643.1,3.78343]
[1724264981966,2.2824,2643.6,2643.1,3.78343]
[1724264982167,2.2824,2643.6,2643.2,3.7832]
[1724264982389,2.2824,2643.6,2643.4,3.78299]
[1724264983268,2.2824,2643.6,2643.4,3.78292]
[1724264983461,2.2824,2643.6,2643.4,7.56583]
[1724264984207,2.2824,2643.6,2643.4,7.56584]
[1724264984783,2.2824,2643.6,2643.5,3.78286]
[1724264985678,2.2824,2643.6,2643.4,3.78291]
[1724264986230,1.98072649,2643.9,2643.2,3.78319]
[1724264986231,4.33812649,2643.9,2643.7,3.78255]
[1724264986527,4.33812649,2643.9,2643.8,3.78243]
[1724264986528,2.3574,2643.9,2643.8,3.78243]
[1724264987271,2.79121265,2643.9,2643.0,7.65049]
[1724264987467,2.3574,2643.9,2643.5,3.78275]
[1724264987672,2.3574,2643.9,2643.7,3.7825]
[1724264988079,1.98072649,2644.1,2643.1,0.7]
[1724264988385,5.08871708,2644.6,2642.8,0.9293]
[1724264988386,2.3157,2644.6,2644.5,3.78143]
[1724264988622,2.3157,2644.6,2644.5,4.33143]
[1724264988841,2.3157,2644.6,2644.4,3.78154]
[1724264989123,2.3157,2644.6,2644.2,3.78183]
[1724264989349,2.3157,2644.6,2644.3,0.55]
[1724264989505,2.3157,2644.6,2644.0,3.867]
[1724264989506,2.879,2645.0,2644.6,3.78115]
[1724264989689,2.879,2645.0,2644.9,3.78086]
[1724264989690,0.5015,2645.0,2644.9,3.78086]
[1724264989985,0.5015,2645.0,2644.9,8.11172]
[1724264990385,0.5015,2645.0,2644.9,4.33086]
[1724264990583,0.5015,2645.0,2644.5,1.6668]
[1724264990584,0.5015,2645.0,2644.8,3.78097]
[1724264990809,0.5015,2645.0,2644.5,3.7814]
[1724264991017,0.5015,2645.0,2644.6,3.55]
[1724264991319,2.357,2644.9,2644.0,0.7]
[1724264991541,2.357,2644.9,2644.4,3.78157]
[1724264991781,2.357,2644.9,2644.1,3.78198]
[1724264991927,2.357,2644.9,2644.3,3.78168]
[1724264992323,2.357,2644.9,2644.2,3.78184]
[1724264992559,2.4149,2644.8,2644.2,3.78184]
[1724264992762,2.4149,2644.8,2643.9,3.78227]
[1724264992763,2.489,2644.7,2643.9,3.78227]
[1724264993119,2.489,2644.7,2644.1,3.782]
[1724264993325,2.489,2644.7,2644.0,3.78211]
[1724264994111,2.489,2644.7,2644.1,3.78196]
[1724264994378,2.7379,2644.7,2644.1,3.78196]
[1724264994580,2.7379,2644.7,2644.2,3.78181]
[1724264994872,2.7379,2644.7,2644.1,3.78196]
[1724264994873,2.489,2644.7,2644.1,3.78196]
[1724264995173,2.489,2644.7,2643.8,3.78234]
[1724264995174,2.2748,2644.6,2643.9,3.78226]
[1724264995360,2.2748,2644.6,2643.7,3.78245]
[1724264995551,2.2748,2644.6,2644.0,3.78214]
[1724264995743,2.2748,2644.6,2643.8,3.78241]
[1724264995987,2.2748,2644.4,2643.6,3.78271]
[1724264996287,2.2748,2644.4,2642.8,5.844]
[1724264996288,2.2748,2644.2,2643.5,3.78284]
[1724264996444,2.2748,2644.2,2643.4,3.78299]
[1724264996779,2.2748,2644.2,2643.7,3.78256]
[1724264996974,2.50228,2644.2,2643.8,3.78243]
[1724264997573,2.50228,2644.2,2642.9,0.3793]
[1724264997784,2.50228,2644.2,2642.0,1.75876198]
[1724264997785,3.784,2642.7,2642.0,0.58491088]
[1724264997947,2.3768,2642.6,2642.0,0.58491088]
[1724264998136,6.161,2642.6,2642.0,0.58491088]
[1724264998336,3.78442,2642.5,2641.6,3.78556]
[1724264998566,4.77892,2642.5,2641.7,3.78542]
[1724264998747,0.9945,2642.5,2641.8,3.78525]
[1724264999185,2.2575,2642.3,2641.6,3.78556]
[1724264999479,2.2575,2642.3,2641.8,3.78529]
[1724264999685,2.2575,2642.3,2641.7,3.78543]
[1724264999838,2.2575,2642.3,2641.9,3.78512]
[1724265000471,2.2575,2642.3,2641.7,3.78543]
[1724265000472,2.2575,2642.3,2641.8,3.78528]
[1724265000656,2.516963,2642.3,2641.9,3.78513]
[1724265000849,2.516963,2642.3,2642.1,3.78484]
[1724265000850,2.2575,2642.3,2642.1,3.78484]
[1724265001259,2.2575,2642.3,2642.1,3.78478]
[1724265001606,2.2575,2642.3,2642.2,3.78472]
[1724265002290,2.2575,2642.3,2642.2,7.56944]
[1724265003164,2.3521,2643.0,2642.3,3.78458]
[1724265003371,3.030436,2643.0,2642.4,3.78436]
[1724265004491,3.030436,2643.0,2642.5,3.78428]
[1724265005243,3.030436,2643.0,2642.5,3.7842]
[1724265005977,2.3676,2643.7,2642.5,4.751]
[1724265006290,2.3676,2643.7,2643.0,3.78347]
[1724265006291,6.1502,2643.7,2643.0,3.78347]
[1724265006437,3.78237,2643.9,2643.0,3.78347]
[1724265006438,2.3676,2643.6,2643.0,3.78347]
[1724265007085,7.23722816,2647.7,2642.9,0.9668]
[1724265007086,2.3676,2644.0,2642.9,0.9668]
[1724265007289,2.3676,2644.0,2643.3,3.78307]
[1724265007489,2.3676,2644.0,2643.5,3.78277]
[1724265007652,2.6293828,2644.0,2643.5,3.78277]
[1724265007851,2.6293828,2644.0,2643.6,3.78266]
[1724265008063,2.6293828,2644.0,2643.7,3.78255]
[1724265008398,2.6293828,2644.0,2643.7,3.78249]
[1724265008559,2.6293828,2644.0,2643.7,3.78248]
[1724265008760,5.17930923,2643.8,2643.7,3.78248]
[1724265009092,5.17930923,2643.8,2643.2,3.78324]
[1724265009093,8.93366817,2643.8,2643.2,3.78321]
[1724265009405,8.93366817,2643.8,2643.3,3.78314]
[1724265009406,2.4565,2643.7,2643.3,3.78314]
[1724265009698,2.4565,2643.7,2642.7,3.78395]
[1724265009699,2.4565,2643.7,2643.4,3.78297]
[1724265010026,2.4565,2643.7,2643.4,3.78299]
[1724265010349,2.4565,2643.7,2642.6,3.0]
[1724265010567,2.4565,2643.7,2643.1,3.78329]
[1724265010568,3.60851412,2643.7,2643.1,3.78329]
[1724265010891,3.60851412,2643.7,2642.7,3.78395]
[1724265010892,2.4062,2643.4,2642.7,3.78395]
[1724265011112,2.4062,2643.4,2641.7,3.78533]
[1724265011288,7.43883967,2643.3,2642.5,3.7842]
[1724265011450,7.43883967,2643.3,2643.0,3.78344]
[1724265011660,7.43883967,2643.3,2642.8,3.78378]
[1724265011865,2.3215,2643.2,2642.3,3.78454]
[1724265012098,2.3215,2643.2,2643.0,3.78356]
[1724265012278,3.35159597,2643.2,2643.0,3.78356]
[1724265012611,3.35159597,2643.2,2643.0,3.78349]
[1724265012815,3.35159597,2643.2,2642.5,3.78422]
[1724265012971,3.35159597,2643.2,2642.6,3.78414]
[1724265013516,7.13496597,2643.2,2642.5,7.5684]
[1724265013813,1.83570356,2643.1,2642.5,3.78419]
[1724265013960,1.83570356,2643.1,2642.7,3.78391]
[1724265014180,2.3215,2643.2,2643.0,3.78343]
[1724265014794,2.3215,2643.2,2642.8,3.78378]
[1724265015219,2.3215,2643.2,2642.8,7.56756]
[1724265015397,2.3215,2643.2,2642.8,3.78378]
[1724265015597,0.97603397,2643.1,2642.9,3.78363]
[1724265015829,0.97603397,2643.1,2643.0,3.78357]
[1724265016031,2.3215,2643.2,2643.0,3.78357]
[1724265016333,2.3215,2643.2,2643.1,3.78343]
[1724265017133,2.3215,2643.2,2643.0,3.78357]
[1724265017684,2.3215,2643.2,2643.1,3.78343]
[1724265017885,2.3215,2643.2,2643.0,3.78348]
[1724265018137,2.3215,2643.2,2642.1,7.75161]
[1724265018138,2.607712,2643.2,2642.8,3.78373]
[1724265018687,4.069522,2643.2,2642.6,3.78414]
[1724265018894,4.069522,2643.2,2642.4,3.78443]
[1724265018895,2.2679,2643.0,2642.4,3.78443]
[1724265019219,4.069522,2643.2,2641.6,4.16479]
[1724265019220,2.2679,2642.3,2641.6,3.78548]
[1724265019630,2.2679,2642.3,2641.1,3.78618]
[1724265019631,2.265,2641.7,2641.1,3.78618]
[1724265020030,2.265,2641.7,2640.9,3.78649]
[1724265020031,9.05052,2641.7,2640.9,3.78649]
[1724265020185,9.05052,2641.7,2640.1,4.86696]
[1724265020186,1.283584,2641.6,2641.0,7.5727]
[1724265020391,1.283584,2641.6,2641.0,3.78635]
[1724265020743,1.283584,2641.6,2640.1,4.48766]
[1724265020744,2.3441,2641.1,2640.6,3.78692]
[1724265020887,0.23441,2641.0,2640.6,3.78692]
[1724265021439,0.23441,2641.0,2640.3,3.78741]
[1724265021637,6.12038,2640.9,2640.0,3.78785]
[1724265022364,2.3337,2640.9,2640.0,3.78785]
[1724265022654,0.256811,2640.8,2640.2,3.78745]
[1724265023243,2.3643,2640.7,2640.0,3.78783]
[1724265023551,2.3643,2640.7,2639.0,4.38325885]
[1724265023552,2.3643,2640.5,2639.8,3.78803]
[1724265023857,2.3643,2640.5,2639.9,3.78801]
[1724265024023,2.3643,2640.5,2640.0,3.78786]
[1724265024223,2.3643,2640.5,2639.9,3.78801]
[1724265024427,2.3643,2640.5,2640.3,3.78742]
[1724265024907,2.3643,2640.5,2639.9,3.78802]
[1724265024908,2.60073,2640.5,2639.9,3.78802]
[1724265025112,2.60073,2640.5,2639.7,3.78824]
[1724265025422,2.60073,2640.5,2639.8,3.78812]
[1724265025663,2.60073,2640.5,2640.1,3.78769]
[1724265025971,2.60073,2640.5,2640.4,3.7873]
[1724265025972,2.3643,2640.5,2640.4,3.7873]
[1724265027359,2.4774,2640.9,2640.7,3.78673]
[1724265027561,2.4774,2640.9,2640.6,3.787]
[1724265027864,2.4774,2640.9,2640.4,3.78729]
[1724265028218,2.4774,2640.9,2640.4,7.57449]
[1724265028433,2.4774,2640.9,2640.2,3.78757]
[1724265028661,0.24774,2640.8,2640.3,3.78743]
[1724265028839,0.24774,2640.8,2640.4,3.78729]
[1724265029012,2.4774,2640.9,2640.6,3.787]